fUST/lending_fUST_20240806
["ID","MTS","AMOUNT","RATE_DAILY","PERIOD"]
[334306440,1722931846568,-1008.15702685,0.00038,7]
[334306441,1722931846578,-783.989886,0.00038,7]
[334306442,1722931846587,-783.989886,0.00038,7]
[334306443,1722931846596,-1113.592782,0.00038,7]
[334306444,1722931846606,-1113.592782,0.00038,7]
[334306445,1722931846615,-519.727985,0.00038,7]
[334306446,1722931846623,-519.727985,0.00038,7]
[334306447,1722931846633,-5957.76242841,0.00038,120]
[334306448,1722931882340,1643.39565176,0.000161,7]
[334306450,1722932047913,15921.6428315,0.00027,120]
[334306451,1722932318435,336.8903361,0.00013699,2]
[334306452,1722932382062,1735.00887359,0.00013699,2]
[334306453,1722932388489,260.34537136,0.00013699,2]
[334306454,1722932396968,1237.99274843,0.00013699,2]
[334306455,1722932435709,280.51515585,9.999e-05,2]
[334306456,1722932444639,816.39879119,0.0001,2]
[334306457,1722932466341,810.1149959,9.999e-05,2]
[334306461,1722932491604,470.9321154,9.999e-05,2]
[334306462,1722932495974,342.52439147,9.999e-05,2]
[334306463,1722932502743,154.78825295,0.0001212,2]
[334306464,1722932505279,266.72359904,0.0001,2]
[334306465,1722932508785,434.88024362,9.999e-05,2]
[334306471,1722932517148,173.66059626,0.0001212,2]
[334306472,1722932527607,274.7852108,0.0001212,2]
[334306473,1722932527761,845.65510903,9.999e-05,2]
[334306474,1722932535179,194.16096995,9.999e-05,2]
[334306475,1722932536350,319.5563489,9.999e-05,2]
[334306476,1722932553570,266.72359904,0.0001212,2]
[334306477,1722932560129,418.57196256,9.999e-05,2]
[334306478,1722932562809,845.65510903,0.0001212,2]
[334306479,1722932578785,160.19468673,9.999e-05,2]
[334306480,1722932581839,308.73746064,0.0001212,2]
[334306481,1722932598527,165.56810844,9.999e-05,2]
[334306483,1722932617622,24900.0,0.00013666,2]
[334306484,1722932625759,582.097878,0.00013699,2]
[334306485,1722932628528,165.56810844,9.999e-05,2]
[334306486,1722932664402,170.05525585,0.00013,2]
[334306487,1722932682802,308.95361171,9.999e-05,2]
[334306488,1722932685255,845.65510903,9.999e-05,2]
[334306489,1722932688607,154.79103211,0.0001212,2]
[334306490,1722932698641,842.91950103,0.0001212,2]
[334306492,1722932804273,844.85398105,9.999e-05,2]
[334306494,1722932812155,-165.041113,0.00014247,2]
[334306495,1722932812176,-225.827607,0.00014247,2]
[334306496,1722932812199,-162.500001,0.0001431,2]
[334306497,1722932812221,-162.500001,0.00014352,2]
[334306498,1722932812242,-162.500001,0.00014393,2]
[334306499,1722932812264,-162.500001,0.00014434,2]
[334306500,1722932812286,-162.500001,0.00014476,2]
[334306501,1722932812307,-162.500001,0.00014517,2]
[334306502,1722932812329,-162.500001,0.00014559,2]
[334306503,1722932812352,-162.500001,0.000146,2]
[334306504,1722932812375,-162.500001,0.00014642,2]
[334306505,1722932812397,-162.500001,0.00014683,2]
[334306506,1722932812418,-215.44593649,0.0001469,2]
[334306507,1722932812441,-336.24575672,0.0001469,2]
[334306508,1722932812462,-269.73277317,0.0001469,2]
[334306509,1722932812486,-247.4461836,0.00014691,2]
[334306511,1722932837097,-300.0,0.0001469,2]
[334306512,1722932837120,-300.0,0.0001469,2]
[334306513,1722932837143,-229.17880342,0.00014691,2]
[334306514,1722932849161,-4074.13442515,0.00014691,2]
[334306518,1722932911827,2140.02247073,0.00018,30]
[334306519,1722932924272,154.68290005,9.999e-05,2]
[334306521,1722932955014,162.500001,0.00013861,2]
[334306522,1722932955230,162.500001,0.00013951,2]
[334306523,1722932961441,6467.40921525,0.00013942,2]
[334306524,1722932967504,-162.500001,0.00014042,2]
[334306525,1722932967530,-162.500001,0.00014132,2]
[334306526,1722932967551,-162.500001,0.00014222,2]
[334306527,1722932967574,-162.500001,0.00014312,2]
[334306528,1722932967597,-162.500001,0.00014403,2]
[334306529,1722932967619,-162.500001,0.00014493,2]
[334306530,1722932967642,-162.500001,0.00014583,2]
[334306531,1722932967667,-163.12313195,0.00014591,2]
[334306532,1722932967689,-300.0,0.00014689,2]
[334306533,1722932967710,-300.0,0.00014689,2]
[334306534,1722932967731,-212.18064451,0.0001469,2]
[334306535,1722932967752,-500.0,0.0001469,2]
[334306536,1722932967775,-176.79987214,0.0001469,2]
[334306537,1722932967796,-500.0,0.0001469,2]
[334306538,1722932967817,-500.0,0.0001469,2]
[334306539,1722932967837,-500.0,0.0001469,2]
[334306540,1722932967860,-500.0,0.0001469,2]
[334306541,1722932967880,-500.0,0.0001469,2]
[334306542,1722932967904,-500.0,0.0001469,2]
[334306543,1722932967926,-423.23846212,0.0001469,2]
[334306544,1722932967947,-500.0,0.0001469,2]
[334306545,1722932967968,-500.0,0.0001469,2]
[334306546,1722932967990,-500.0,0.0001469,2]
[334306547,1722932968012,-500.0,0.0001469,2]
[334306548,1722932968033,-500.0,0.0001469,2]
[334306549,1722932968053,-500.0,0.0001469,2]
[334306550,1722932968077,-500.0,0.0001469,2]
[334306551,1722932968098,-500.0,0.0001469,2]
[334306552,1722932968118,-500.0,0.0001469,2]
[334306553,1722932968139,-500.0,0.0001469,2]
[334306554,1722932968159,-500.0,0.0001469,2]
[334306555,1722932968182,-500.0,0.0001469,2]
[334306556,1722932968203,-543.26128416,0.0001469,2]
[334306557,1722932968224,-500.0,0.0001469,2]
[334306558,1722932968244,-500.0,0.0001469,2]
[334306559,1722932968265,-500.0,0.0001469,2]
[334306560,1722932968286,-500.0,0.0001469,2]
[334306561,1722932968308,-500.0,0.0001469,2]
[334306562,1722932968329,-500.0,0.0001469,2]
[334306563,1722932968350,-504.81681872,0.0001469,2]
[334306564,1722932968370,-500.0,0.0001469,2]
[334306565,1722932968394,-500.0,0.0001469,2]
[334306566,1722932968415,-500.0,0.0001469,2]
[334306567,1722932968438,-500.0,0.0001469,2]
[334306568,1722932968461,-500.0,0.0001469,2]
[334306569,1722932968483,-500.0,0.0001469,2]
[334306570,1722932968504,-304.32612841,0.0001469,2]
[334306571,1722932968529,-500.0,0.0001469,2]
[334306572,1722932968551,-500.0,0.0001469,2]
[334306573,1722932968573,-500.0,0.0001469,2]
[334306574,1722932968597,-500.0,0.0001469,2]
[334306575,1722932968617,-500.0,0.0001469,2]
[334306576,1722932968639,-500.0,0.0001469,2]
[334306577,1722932968661,-500.0,0.0001469,2]
[334306578,1722932968683,-500.0,0.0001469,2]
[334306579,1722932968705,-500.0,0.0001469,2]
[334306580,1722932968729,-500.0,0.0001469,2]
[334306581,1722932968750,-388.69392666,0.0001469,2]
[334306582,1722932968772,-269.73277317,0.00014691,2]
[334306583,1722932968794,-336.24575672,0.00014691,2]
[334306584,1722932968815,-396.57186724,0.00014691,2]
[334306585,1722932968836,-396.57186724,0.00014691,2]
[334306586,1722932968857,-206.86610956,0.00014832,2]
[334306587,1722932968877,-500.0,0.00014917,2]
[334306588,1722932968898,-370.8221964,0.00014917,2]
[334306589,1722932968921,-500.0,0.00014917,2]
[334306590,1722932968944,-194.27095819,0.00014917,2]
[334306591,1722932968966,-500.0,0.00014917,2]
[334306592,1722932968990,-500.0,0.00014917,2]
[334306593,1722932969017,-356.51975177,0.00014917,2]
[334306594,1722932969039,-500.0,0.00014917,2]
[334306595,1722932969060,-500.0,0.00014917,2]
[334306596,1722932969082,-500.0,0.00014917,2]
[334306597,1722932969104,-500.0,0.00014917,2]
[334306598,1722932969125,-500.0,0.00014917,2]
[334306599,1722932969148,-500.0,0.00014917,2]
[334306600,1722932969170,-500.0,0.00014917,2]
[334306601,1722932969193,-500.0,0.00014917,2]
[334306602,1722932969215,-550.0,0.00014917,2]
[334306603,1722932969237,-728.50492769,0.00014998,2]
[334306604,1722932969477,-154.94706517,0.00014999,2]
[334306605,1722932969500,-492.52191219,0.00015,2]
[334306606,1722932969525,-951.94046237,0.00015,2]
[334306607,1722932969545,-1109.04434069,0.00015,2]
[334306608,1722932969567,-2358.81688151,0.000155,2]
[334306609,1722932969587,-3996.10837124,0.00015608,2]
[334306610,1722932969614,-100000.0,0.00015707,2]
[334306611,1722932969637,-20762.30804091,0.00015708,2]
[334306612,1722932969662,-1163.02940656,0.00015708,2]
[334306613,1722932969683,-9643.98087226,0.00015708,2]
[334306614,1722932969705,-2139.49023769,0.00015708,2]
[334306615,1722932969727,-8293.70177202,0.00015708,2]
[334306616,1722932969751,-1500.0,0.00015708,2]
[334306617,1722932969773,-1716.08369865,0.00015708,2]
[334306618,1722932969797,-300.0,0.00016158,2]
[334306619,1722932969821,-163.12313194,0.00016303,2]
[334306620,1722932969843,-154.68290005,0.00017,2]
[334306621,1722932969863,-1611.21515099,0.00017403,2]
[334306622,1722932969884,-2162.60520141,0.00017403,2]
[334306623,1722932969905,-42347.64201934,0.00017881,2]
[334306624,1722932969927,-163.12313194,0.00018015,2]
[334306625,1722932969949,-3684.68183845,0.00018115,2]
[334306627,1722932987138,2005.0,0.00016037,10]
[334306628,1722932987399,731.88498011,0.00016094,10]
[334306658,1722933032401,-163.773869,0.00014247,2]
[334306659,1722933032411,-142.07504293,0.0001469,2]
[334306660,1722933032422,-12.60785712,0.0001469,2]
[334306661,1722933032432,-6249.1740888,0.00017806,2]
[334306662,1722933032441,-269.73277317,0.00017806,2]
[334306663,1722933032451,-684.78849183,0.00017806,2]
[334306664,1722933032472,-815.21150817,0.00017806,2]
[334306665,1722933032482,-951.94046237,0.00017806,2]
[334306666,1722933032491,-1109.04434069,0.00017806,2]
[334306667,1722933032500,-2139.49023769,0.00017806,2]
[334306668,1722933032509,-349.61454536,0.00017806,2]
[334306669,1722933032518,-5397.82496106,0.00017806,2]
[334306694,1722933038396,-500.0,0.00017805,2]
[334306695,1722933038406,-421.58466037,0.00017805,2]
[334306696,1722933038420,-78.41533963,0.00017805,2]
[334306697,1722933038432,-278.31297986,0.00017805,2]
[334306698,1722933038442,-500.0,0.00017805,2]
[334306699,1722933038454,-330.43261284,0.00017805,2]
[334306700,1722933038464,-36949.81705828,0.00017806,2]
[334306702,1722933038475,-1163.02940656,0.00017806,2]
[334306703,1722933038487,-7057.00150013,0.00017806,2]
[334306704,1722933038497,-155.04626402,0.00017806,2]
[334306705,1722933038709,-1109.04434069,0.00017806,2]
[334306706,1722933038721,-492.52191219,0.00017806,2]
[334306707,1722933038731,-912.60929894,0.00018,2]
[334306708,1722933038740,-500.0,0.00018114,2]
[334306709,1722933038749,-259.57553748,0.00018114,2]
[334306710,1722933038758,-500.0,0.00018114,2]
[334306711,1722933038768,-284.56382624,0.00018114,2]
[334306712,1722933038778,-500.0,0.00018114,2]
[334306713,1722933038787,-500.0,0.00018114,2]
[334306714,1722933038797,-500.0,0.00018114,2]
[334306715,1722933038809,-500.0,0.00018114,2]
[334306716,1722933038826,-500.0,0.00018114,2]
[334306717,1722933038836,-500.0,0.00018114,2]
[334306718,1722933038845,-500.0,0.00018114,2]
[334306719,1722933038853,-500.0,0.00018114,2]
[334306720,1722933038863,-68885.31353545,0.00018115,2]
[334306721,1722933038872,-3996.10837124,0.00018431,2]
[334306722,1722933038882,-6991.89309216,0.00018696,2]
[334306723,1722933038891,-72569.9953739,0.00018763,2]
[334306724,1722933038900,-1091.50397563,0.00018773,2]
[334306725,1722933038909,-459.55767833,0.0001891,4]
[334306726,1722933038918,-309.27320796,0.0001891,2]
[334306727,1722933038927,-300.02583511,0.0001891,2]
[334306728,1722933038936,-154.68290005,0.00018921,2]
[334306729,1722933038945,-200.0,0.00018973,2]
[334306730,1722933038953,-150.112233,0.00019,2]
[334306731,1722933038963,-250.0,0.00019041,2]
[334306732,1722933038972,-186.21506646,0.000191,2]
[334306733,1722933038982,-250.38146921,0.00019155,2]
[334306734,1722933038991,-1785.06005895,0.00019155,2]
[334306735,1722933039001,-1306.47483636,0.00019167,7]
[334306736,1722933039011,-1763.75242219,0.00019177,2]
[334306737,1722933039022,-160.200956,0.00019178,2]
[334306738,1722933039034,-173.817914,0.00019178,2]
[334306739,1722933039047,-1648.73260493,0.00019256,2]
[334306740,1722933039059,-188.63052762,0.00019256,2]
[334306741,1722933039069,-1610.90790663,0.00019256,2]
[334306742,1722933039078,-1610.90790663,0.00019451,2]
[334306743,1722933039087,-586.05901914,0.00019451,2]
[334306744,1722933039096,-209.90726283,0.00019451,2]
[334306745,1722933039106,-862.42234122,0.00019451,2]
[334306746,1722933039116,-245.56958084,0.00019477,2]
[334306747,1722933039126,-209.18351946,0.00019477,2]
[334306748,1722933039135,-357.18103906,0.00019477,2]
[334306749,1722933039145,-330.88444371,0.00019477,3]
[334306750,1722933039155,-214.0,0.000195,10]
[334306751,1722933039164,-65131.21263929,0.0001999,2]
[334306752,1722933039626,-7438.78273461,0.0001999,2]
[334306753,1722933039637,-14746.21148734,0.00019999,2]
[334306754,1722933039647,-154.80649189,0.0002,2]
[334306755,1722933039656,-1443.89362386,0.0002,2]
[334306756,1722933039666,-154.68290005,0.0002,2]
[334306757,1722933039676,-294.13159854,0.0002,2]
[334306758,1722933039686,-435.0,0.0002,2]
[334306759,1722933039696,-709.64530844,0.0002,2]
[334306762,1722933040088,-452.68160279,0.0002,2]
[334306768,1722933041280,-329.89917122,0.0002,2]
[334306769,1722933041290,-174.30843248,0.0002,2]
[334306770,1722933041299,-6896.69376362,0.0002,2]
[334306771,1722933041311,-300.10202598,0.0002,2]
[334306772,1722933041321,-12900.0,0.0002,2]
[334306773,1722933041330,-192.62832604,0.0002,2]
[334306774,1722933041339,-5205.14109527,0.0002,2]
[334306775,1722933041348,-4282.7434558,0.0002,2]
[334306776,1722933041357,-400.0,0.00020342,2]
[334306777,1722933041367,-582.097878,0.00020548,2]
[334306778,1722933041376,-5372.33343131,0.00020551,15]
[334306779,1722933041385,-4246.32469554,0.0002066,7]
[334306780,1722933041394,-225.827607,0.00020707,2]
[334306781,1722933041404,-258.06356031,0.00021,2]
[334306782,1722933041413,-10129.02075788,0.00021,2]
[334306783,1722933041423,-232.61532772,0.00021,2]
[334306784,1722933041433,-3996.10837124,0.00021254,2]
[334306785,1722933041443,-154.94480614,0.0002142,2]
[334306786,1722933041452,-155.26284623,0.0002142,2]
[334306787,1722933041462,-172.3047652,0.00021805,2]
[334306788,1722933041471,-160.57653845,0.00022,2]
[334306789,1722933041481,-344.04,0.00022,14]
[334306790,1722933041490,-881.61577024,0.0002217,2]
[334306791,1722933041499,-600.0,0.00022346,2]
[334306792,1722933041509,-163.773869,0.00022429,2]
[334306793,1722933041518,-1000.0,0.00023,23]
[334306794,1722933041528,-569.90536319,0.00023,2]
[334306795,1722933041537,-2929.16,0.000239,14]
[334306796,1722933041547,-3996.10837124,0.00024077,2]
[334306797,1722933041561,-150.112233,0.000245,3]
[334306798,1722933041570,-200.0,0.00024658,15]
[334306799,1722933041580,-202.00344159,0.00024687,2]
[334306800,1722933041589,-344.04,0.000247,14]
[334306801,1722933041601,-12467.3965525,0.00025,2]
[334306802,1722933041610,-402.40869281,0.00025,2]
[334306803,1722933041620,-1854.80349053,0.00025,2]
[334306804,1722933041631,-4863.09840034,0.0002661,30]
[334306805,1722933041641,-72569.9953739,0.0002689,3]
[334306806,1722933041652,-3996.10837124,0.000269,2]
[334306807,1722933041661,-189.55103082,0.00027,2]
[334306808,1722933041681,-1626.04191113,0.00027,2]
[334306809,1722933041691,-4181.6719909,0.00027,2]
[334306810,1722933041702,-225.827607,0.00027167,2]
[334306811,1722933041713,-1527.65580348,0.0002739,2]
[334306812,1722933041725,-410.92295579,0.000276,2]
[334306813,1722933041735,-255.96462213,0.000286,120]
[334306814,1722933041745,-1000.0,0.00029,29]
[334306815,1722933041754,-344.04,0.00029,14]
[334306816,1722933041764,-153.0,0.00029536,2]
[334306817,1722933041773,-153.0,0.00029536,2]
[334306818,1722933041782,-153.0,0.00029536,2]
[334306819,1722933041791,-153.0,0.00029536,2]
[334306820,1722933041801,-153.0,0.00029536,2]
[334306821,1722933041812,-153.0,0.00029536,2]
[334306822,1722933041823,-153.0,0.00029536,2]
[334306823,1722933041834,-153.0,0.00029536,2]
[334306824,1722933041844,-153.0,0.00029536,2]
[334306825,1722933041855,-153.0,0.00029536,2]
[334306826,1722933041865,-153.0,0.00029536,2]
[334306827,1722933041874,-153.0,0.00029536,2]
[334306828,1722933041884,-153.0,0.00029536,2]
[334306829,1722933041893,-153.0,0.00029536,2]
[334306830,1722933041903,-153.0,0.00029536,2]
[334306831,1722933041912,-200.0,0.00029973,2]
[334306832,1722933041921,-72569.9953739,0.0002999,4]
[334306833,1722933041930,-150.112233,0.0003,8]
[334306834,1722933041939,-2929.16,0.0003,14]
[334306835,1722933041949,-43095.95087272,0.0003,2]
[334306848,1722933043756,-250.38146921,0.00019153,2]
[334306849,1722933043766,-92.36735079,0.0003,2]
[334306851,1722933043778,-4273.57667893,0.0003,2]
[334306940,1722933047220,-1716.61816736,0.00017806,2]
[334306941,1722933047230,-1543.85488641,0.0003,2]
[334306944,1722933458594,223.838777,0.00014247,2]
[334306945,1722933491074,2030.53917402,0.00014247,2]
[334306946,1722933493317,154.66746495,0.00014247,2]
[334306948,1722933578328,154.66746495,0.00014247,2]
[334306951,1722933673337,154.66746495,0.00014247,2]
[334306952,1722933773603,154.66746495,0.00014247,2]
[334306953,1722933869352,269.41029529,0.00014247,2]
[334306955,1722933908678,6329.35509294,0.00015954,2]
[334306958,1722933997841,161.57018,0.00014247,2]
[334306959,1722934001380,155.26284623,0.00015954,2]
[334306960,1722934015217,186.38527297,0.00015954,2]
[334306962,1722934038858,154.92468612,0.00015954,2]
[334306963,1722934043695,154.94480614,0.00015954,2]
[334306964,1722934054140,-861.18688549,0.00016095,2]
[334306965,1722934054168,-263.0,0.00016488,2]
[334306966,1722934054194,-500.0,0.00016489,2]
[334306967,1722934054223,-500.0,0.00016489,2]
[334306968,1722934054249,-500.0,0.00016489,2]
[334306969,1722934054272,-500.0,0.00016489,2]
[334306970,1722934054294,-500.0,0.00016489,2]
[334306971,1722934054318,-88.23262905,0.00016489,2]
[334306972,1722934055085,912.60929894,0.00015954,2]
[334306973,1722934149019,912.60929894,0.00015954,2]
[334306974,1722934149370,596.2674526,0.00015892,2]
[334306975,1722934157158,-411.76737095,0.00016489,2]
[334306976,1722934157182,-318.75064982,0.00016489,2]
[334306977,1722934160113,-280.48916005,0.00016159,2]
[334306978,1722934160137,-181.24935018,0.00016489,2]
[334306979,1722934160159,-423.65477635,0.00016489,2]
[334306980,1722934160181,-163.66862475,0.00016489,2]
[334306981,1722934160209,-24900.0,0.0001649,2]
[334306982,1722934160233,-432.931477,0.00016795,2]
[334306983,1722934160254,-3000.0,0.00016881,2]
[334306984,1722934160275,-42347.64201934,0.00017402,2]
[334306985,1722934160297,-170.540099,0.0001753,2]
[334306986,1722934160331,-170.540099,0.00017621,2]
[334306987,1722934160352,-170.540099,0.00017712,2]
[334306988,1722934160375,-170.540099,0.00017804,2]
[334306989,1722934160397,-170.540099,0.00017895,2]
[334306990,1722934160418,-170.540099,0.00017987,2]
[334306991,1722934160440,-155.58214353,0.00018,2]
[334306992,1722934160461,-170.540099,0.00018078,2]
[334306993,1722934160486,-170.540099,0.00018169,2]
[334306994,1722934160507,-170.540099,0.00018261,2]
[334306995,1722934160529,-170.540099,0.00018352,2]
[334306996,1722934160551,-170.540099,0.00018443,2]
[334306997,1722934160580,-2139.49023769,0.00018696,2]
[334306998,1722934160601,-1763.75242219,0.00018696,2]
[334306999,1722934160622,-1610.90790663,0.00018773,2]
[334307000,1722934160643,-732.93221934,0.00018773,2]
[334307001,1722934161103,-767.06778066,0.00018773,2]
[334307002,1722934161124,-1109.04434069,0.00018773,2]
[334307003,1722934161149,-951.94046237,0.00018825,2]
[334307004,1722934161170,-862.42234122,0.00018845,2]
[334307005,1722934161190,-269.73277317,0.00018899,2]
[334307006,1722934161211,-492.52191219,0.0001891,2]
[334307007,1722934161232,-209.75633531,0.0001891,2]
[334307008,1722934161253,-492.52191219,0.0001891,2]
[334307009,1722934161275,-150.112233,0.00019,2]
[334307010,1722934161297,-250.0,0.00019041,2]
[334307011,1722934161324,-169.049931,0.00019178,2]
[334307012,1722934161346,-160.200956,0.00019178,2]
[334307013,1722934161368,-2439.50029643,0.00019256,2]
[334307014,1722934170114,-648.56034818,0.00019256,2]
[334307015,1722934170136,-2617.63546734,0.00019256,2]
[334307016,1722934197529,154.63660398,0.0001,2]
[334307068,1722934232467,-216.465738,0.00018447,2]
[334307070,1722934232477,-281.26808939,0.00019177,2]
[334307077,1722934232543,-1128.93746315,0.00019177,2]
[334307078,1722934232553,-20239.80665125,0.00019256,2]
[334307079,1722934232562,-9641.65829969,0.00019256,2]
[334307080,1722934232572,-912.60929894,0.00019338,2]
[334307081,1722934232582,-1136.08828697,0.00019441,2]
[334307124,1722934238534,-172.3047652,0.00019177,2]
[334307125,1722934238546,-435.96164182,0.00019255,2]
[334307126,1722934238557,-36816.13782684,0.00019441,2]
[334307127,1722934238591,-24333.72030009,0.00019441,2]
[334307128,1722934238601,-2397.66502276,0.00019447,2]
[334307129,1722934238611,-1345.94638291,0.00019451,3]
[334307130,1722934238622,-414.64740725,0.00019451,2]
[334307131,1722934238632,-154.87477324,0.00019451,2]
[334307132,1722934238643,-403.3502506,0.00019477,2]
[334307134,1722934238654,-515.14154961,0.00019547,2]
[334307135,1722934238663,-336.05027019,0.00019547,2]
[334307136,1722934238673,-159.96841318,0.00019547,2]
[334307137,1722934238682,-500.0,0.00019689,2]
[334307138,1722934238691,-181.70287623,0.00019689,2]
[334307139,1722934238701,-199.19467837,0.00019689,2]
[334307140,1722934238711,-500.0,0.00019689,2]
[334307141,1722934238721,-500.0,0.00019689,2]
[334307142,1722934238731,-500.0,0.00019689,2]
[334307143,1722934238741,-500.0,0.00019689,2]
[334307144,1722934238751,-500.0,0.00019689,2]
[334307145,1722934238762,-500.0,0.00019689,2]
[334307146,1722934238771,-34130.62677324,0.0001969,2]
[334307159,1722934242794,-155.73497751,0.00019547,2]
[334307160,1722934242804,-497.00060015,0.0001969,2]
[334307161,1722934242816,-89944.26545461,0.0001969,2]
[334307162,1722934242826,-2889.0,0.0001971,2]
[334307163,1722934242835,-1443.89362386,0.0002,2]
[334307164,1722934242844,-174.30843248,0.0002,2]
[334307165,1722934242853,-12900.0,0.0002,2]
[334307166,1722934242862,-192.62832604,0.0002,2]
[334307167,1722934242871,-300.10202598,0.0002,2]
[334307168,1722934242883,-329.89917122,0.0002,2]
[334307169,1722934242893,-154.66746495,0.0002,2]
[334307170,1722934242902,-297.10742848,0.0002028,2]
[334307172,1722934242911,-663.23134442,0.0002028,2]
[334307174,1722934242920,-209.52917397,0.0002028,2]
[334307175,1722934242929,-223.838777,0.00020707,2]
[334307176,1722934242940,-294.13159854,0.00021011,2]
[334307177,1722934242952,-62285.9464139,0.00021028,3]
[334307180,1722934242962,-161.57018,0.00021467,2]
[334307182,1722934242971,-492.52191219,0.00021916,2]
[334307184,1722934242981,-862.42234122,0.00021916,2]
[334307185,1722934242991,-2397.66502274,0.0002206,2]
[334307186,1722934242999,-249.2121176,0.0002334,2]
[334307187,1722934243009,-967.8465363,0.0002334,2]
[334307189,1722934243019,-7472.84990077,0.0002334,2]
[334307191,1722934243029,-243.21914709,0.0002334,2]
[334307193,1722934243039,-1610.90790663,0.0002334,2]
[334307194,1722934243049,-356.70794981,0.0002334,2]
[334307196,1722934243059,-1763.75242219,0.0002334,2]
[334307198,1722934243068,-1169.78571812,0.0002334,2]
[334307200,1722934243077,-1139.56323425,0.0002334,2]
[334307202,1722934243086,-200.0,0.00024658,15]
[334307205,1722934243096,-62285.9464139,0.00024663,3]
[334307207,1722934243106,-2397.66502274,0.00024674,2]
[334307211,1722934243116,-189.55103082,0.00025,2]
[334307213,1722934243128,-402.40869281,0.00026569,2]
[334307217,1722934243138,-881.61577024,0.00026589,2]
[334307220,1722934243147,-160.57653845,0.0002661,2]
[334307223,1722934243156,-223.838777,0.00027167,2]
[334307226,1722934243165,-2397.66502274,0.00027287,2]
[334307229,1722934243174,-216.465738,0.00027671,2]
[334307232,1722934243183,-153.0,0.00028113,2]
[334307236,1722934243192,-153.0,0.00028113,2]
[334307238,1722934243201,-153.0,0.00028113,2]
[334307240,1722934243210,-153.0,0.00028113,2]
[334307243,1722934243219,-153.0,0.00028113,2]
[334307246,1722934243229,-153.0,0.00028113,2]
[334307248,1722934243238,-153.0,0.00028113,2]
[334307250,1722934243247,-153.0,0.00028113,2]
[334307252,1722934243256,-153.0,0.00028113,2]
[334307255,1722934243266,-150.112233,0.000285,6]
[334307257,1722934243276,-161.57018,0.00028687,2]
[334307259,1722934243285,-1000.0,0.00029,29]
[334307260,1722934243294,-3890.03066127,0.000298,2]
[334307261,1722934243304,-2000.0,0.0002989,2]
[334307262,1722934243313,-150.112233,0.000299,10]
[334307263,1722934243322,-285.04956707,0.000299,2]
[334307264,1722934243331,-2397.66502274,0.000299,2]
[334307265,1722934243341,-200.0,0.00029973,5]
[334307266,1722934243350,-22745.61465774,0.00029988,2]
[334307267,1722934243366,-200.0,0.00029973,2]
[334307268,1722934243378,-78084.23058255,0.00029988,2]
[334307269,1722934243388,-45389.86687447,0.0003,2]
[334307270,1722934243397,-151.0,0.0003,120]
[334307271,1722934243407,-2184.70122417,0.0003,4]
[334307272,1722934243416,-5618.3692776,0.0003,4]
[334307273,1722934243426,-9266.19123711,0.0003,7]
[334307274,1722934243436,-151.0,0.0003,120]
[334307275,1722934243446,-302.39527296,0.0003,2]
[334307276,1722934243456,-314.77426768,0.0003,2]
[334307277,1722934243466,-153.0,0.00030782,2]
[334307278,1722934243476,-153.0,0.00030782,2]
[334307279,1722934243485,-153.0,0.00030782,2]
[334307280,1722934243495,-153.0,0.00030782,2]
[334307281,1722934243504,-153.0,0.00030782,2]
[334307282,1722934243514,-153.0,0.00030782,2]
[334307283,1722934243523,-153.0,0.00030782,2]
[334307284,1722934243533,-153.0,0.00030782,2]
[334307285,1722934243542,-153.0,0.00030782,2]
[334307286,1722934243551,-153.0,0.00030782,2]
[334307287,1722934243561,-153.0,0.00030782,2]
[334307288,1722934243570,-153.0,0.00030782,2]
[334307289,1722934243579,-153.0,0.00030782,2]
[334307290,1722934243589,-153.0,0.00030782,2]